lending/lending_fUSD_20250218
["ID","MTS","AMOUNT","RATE_DAILY","PERIOD"]
[353452877,1739842241108,-300.0,0.00012978,2]
[353452879,1739842241118,-778.77,0.00012978,2]
[353452881,1739842241127,-200.0,0.000131,4]
[353452883,1739842241137,-500.0,0.000132,4]
[353452885,1739842241146,-775.49,0.0001326,2]
[353452887,1739842241155,-594.23,0.0001326,2]
[353452889,1739842241165,-800.0,0.000133,4]
[353452891,1739842241174,-1100.0,0.000134,4]
[353452893,1739842241183,-165.8142374,0.00013424,2]
[353452896,1739842241195,-1000.0,0.00013494,2]
[353452898,1739842241204,-1300.0,0.000135,4]
[353452900,1739842241215,-200.0,0.000136,6]
[353452901,1739842241224,-200.0,0.000136,6]
[353452903,1739842241233,-2000.0,0.000136,2]
[353452906,1739842241243,-200.0,0.000136,4]
[353452908,1739842241252,-302.72,0.00013644,2]
[353452910,1739842241261,-1061.56373219,0.00013687,2]
[353452911,1739842241272,-772.8303201,0.00013687,2]
[353452913,1739842241281,-452.7170895,0.00013687,2]
[353452916,1739842241290,-423.2942703,0.00013689,2]
[353452917,1739842241300,-393.8714511,0.00013689,2]
[353452919,1739842241309,-364.4486319,0.00013689,2]
[353452922,1739842241319,-521.09921905,0.00013696,2]
[353452923,1739842241330,-415.7538375,0.00013696,2]
[353452925,1739842241339,-1180.0,0.00013698,2]
[353452928,1739842241349,-193.2874769,0.00013698,2]
[353452929,1739842241358,-3837.9174868,0.00013698,3]
[353452932,1739842241369,-27731.46638528,0.00013698,5]
[353453126,1739842243218,-384.03579341,0.00011924,2]
[353453134,1739842243286,-122.13420659,0.00011924,2]
[353453136,1739842243295,-200.0,0.00012185,2]
[353453138,1739842243304,-28456.36818578,0.00013698,5]
[353453157,1739842243480,-306.0,0.00013698,5]
[353453404,1739842245972,-2746.73849264,0.00013698,5]
[353453414,1739842246049,-444.12,0.00013698,5]
[353453416,1739842246061,-565.70843114,0.00013698,5]
[353453424,1739842246127,-378.8694,0.00013698,5]
[353453434,1739842246207,-94188.76077205,0.00013698,5]
[353453818,1739842430674,212.11328961,0.000205,120]
[353453819,1739842675562,324.22,0.00020197,120]
[353453820,1739842703012,155.0,0.00020198,120]
[353453822,1739842940280,1346.16120583,0.000205,120]
[353453824,1739842979624,575.10233626,0.000202,120]
[353453836,1739843265927,2116.53268069,0.0002,120]
[353453837,1739843268396,929.4325843,0.000205,120]
[353453838,1739843270277,225.01460528,0.000205,120]
[353453839,1739843339871,555.55555,0.0002,120]
[353453840,1739843423102,3600.0,0.000205,120]
[353453850,1739843432120,-208.6336,8.851e-05,2]
[353453851,1739843432131,-200.0,8.995e-05,2]
[353453852,1739843432141,-200.0,9.736e-05,2]
[353453853,1739843432152,-550.0,0.0001,2]
[353453854,1739843432162,-200.0,0.00010052,2]
[353453855,1739843432171,-170.13,0.00010137,2]
[353453856,1739843432181,-192.76767509,0.00010193,2]
[353453857,1739843432190,-192.76767508,0.00010198,2]
[353453858,1739843432200,-958.14,0.00010294,2]
[353453859,1739843432210,-948.60251108,0.00010298,2]
[353453860,1739843432222,-170.99485739,0.00010298,2]
[353453861,1739843432231,-679.00513261,0.00011361,2]
[353453862,1739843432243,-3149.999975,0.00011361,2]
[353453863,1739843432255,-1177.27544905,0.00011361,2]
[353453864,1739843432264,-504.03,0.00011361,2]
[353453865,1739843432273,-172.27,0.0001198,2]
[353453866,1739843432283,-300.0,0.00011999,2]
[353453867,1739843432292,-600.0,0.00012,2]
[353453870,1739843432483,-10981.05373091,0.00012035,2]
[353453871,1739843432497,-1200.0000003,0.00012035,2]
[353453872,1739843432508,-203.35626879,0.00012035,2]
[353453873,1739843432518,-102.02431307,0.00012039,2]
[353453875,1739843432529,-110.27568693,0.00012039,2]
[353453876,1739843432538,-1060.64483007,0.00012062,2]
[353453877,1739843432598,-880.35135005,0.00012062,2]
[353453878,1739843432607,-169.76188796,0.0001227,2]
[353453879,1739843432618,-80.23811204,0.0001227,2]
[353453880,1739843432627,-156.97137678,0.00012304,2]
[353453881,1739843432636,-152.11467286,0.00012304,2]
[353453882,1739843432645,-153.97602834,0.00012304,2]
[353453883,1739843432654,-150.75804267,0.00012304,2]
[353453884,1739843432664,-1000.0,0.00012411,2]
[353453885,1739843432674,-400.57,0.00012417,2]
[353453886,1739843432684,-500.0,0.00012537,2]
[353453887,1739843432693,-958.14,0.00012557,2]
[353453888,1739843432703,-193.94,0.00012576,2]
[353453890,1739843432712,-429.88187433,0.00012579,2]
[353453892,1739843432721,-166.0,0.00012609,2]
[353453894,1739843432730,-1026.37,0.00012819,2]
[353453896,1739843432740,-384.71799091,0.00012909,2]
[353453897,1739843432749,-1854.1249345,0.00013,2]
[353453899,1739843432758,-500.0,0.000131,4]
[353453901,1739843432767,-276.48056459,0.00013153,2]
[353453903,1739843432777,-1000.0,0.000132,4]
[353453904,1739843432786,-150.09,0.00013252,2]
[353453905,1739843432795,-150.49,0.0001326,2]
[353453906,1739843432805,-304.35,0.0001326,2]
[353453907,1739843432815,-442.33,0.0001326,2]
[353453908,1739843432824,-514.84,0.0001326,2]
[353453910,1739843432834,-439.11,0.0001326,2]
[353453912,1739843432843,-439.11,0.0001326,2]
[353453914,1739843432852,-438.75,0.0001326,2]
[353453916,1739843432862,-1500.0,0.000133,4]
[353453918,1739843432871,-2000.0,0.000134,4]
[353453920,1739843432880,-168.6935986,0.00013424,2]
[353453922,1739843432890,-277.71429831,0.00013498,2]
[353453924,1739843432899,-2500.0,0.000135,4]
[353453926,1739843432908,-500.0,0.000136,4]
[353453928,1739843432918,-677.53076259,0.00013688,2]
[353453930,1739843432927,-652.32709161,0.00013692,2]
[353453932,1739843432936,-964.0,0.00013698,2]
[353453934,1739843432945,-1918.9587434,0.00013698,3]
[353453936,1739843432955,-197.24868924,0.00013698,2]
[353453938,1739843432964,-25180.95089928,0.00013698,5]
[353453940,1739843432975,-1575.35900127,0.00013698,5]
[353453943,1739843432987,-316.52362598,0.00013698,5]
[353453945,1739843432999,-330.55581015,0.00013698,5]
[353453948,1739843433020,-2000.0,0.00013698,5]
[353453950,1739843433032,-5334.76061184,0.00013698,5]
[353453953,1739843433043,-1601.46032278,0.00013698,5]
[353453956,1739843433068,-689.08896582,0.00013698,5]
[353453959,1739843433080,-6891.26719767,0.00013698,5]
[353453961,1739843433092,-573.51186156,0.00013698,5]
[353453976,1739843437965,-416.3300127,0.00013698,3]
[353453977,1739843437978,-543.149359,0.00013698,3]
[353453978,1739843437988,-703.460641,0.00013698,2]
[353453979,1739843438000,-161.539359,0.00013698,2]
[353453980,1739843438010,-741.650643,0.00013698,5]
[353453981,1739843438054,-366313.28015759,0.00013698,5]
[353453982,1739843438065,-215987.88162589,0.00013698,5]
[353454164,1739843440125,-1260.3,0.00013698,5]
[353454199,1739843440434,-8471.56575124,0.00013698,5]
[353454208,1739843440514,-1937.60994722,0.00013698,5]
[353454210,1739843440526,-551.81562715,0.00013698,5]
[353454212,1739843440538,-357.38789991,0.00013698,5]
[353454221,1739843440620,-4046.39382241,0.00013698,5]
[353454473,1739843443076,-567.33945125,0.00013698,2]
[353454483,1739843443147,-210.66054875,0.00013698,2]
[353454485,1739843443158,-54725.74477045,0.00013698,5]
[353454487,1739843443170,-11667.2041683,0.00013698,5]
[353454761,1739843446170,-51560.77942301,0.00013698,5]
[353454765,1739843446250,-2519.0000009,0.00013698,5]
[353454767,1739843446263,-3999.42611812,0.00013698,5]
[353454770,1739843446280,-104420.35385569,0.00013698,5]
[353454876,1739843659164,6785.2816709,0.0002,120]
[353454910,1739844632346,-8190.2246,8.973e-05,2]
[353454911,1739844632356,-550.0,0.0001,2]
[353454912,1739844632366,-158.39720184,0.0001,2]
[353454913,1739844632375,-332.61,0.00010137,2]
[353454914,1739844632385,-862.32,0.0001082,2]
[353454915,1739844632395,-600.0,0.00012,2]
[353454916,1739844632405,-150.0,0.00012304,2]
[353454917,1739844632416,-150.0,0.00012304,2]
[353454918,1739844632425,-150.0,0.00012304,2]
[353454919,1739844632435,-150.90633389,0.00012304,2]
[353454920,1739844632445,-322.80643225,0.00012651,2]
[353454921,1739844632503,-568.71356775,0.00012651,2]
[353454922,1739844632713,-2000.0,0.00012651,2]
[353454923,1739844632724,-303.39,0.0001272,2]
[353454924,1739844632734,-1000.0,0.0001274,2]
[353454925,1739844632744,-200.0,0.00012781,2]
[353454926,1739844632754,-163.34,0.0001306,2]
[353454927,1739844632763,-862.32,0.00013083,2]
[353454929,1739844632774,-150.0,0.00013671,2]
[353454931,1739844632784,-5050.0,0.0001369,29]
[353454933,1739844632792,-500.0,0.00013697,2]
[353454935,1739844632802,-509.55983522,0.00013697,2]
[353454937,1739844632811,-522.1225069,0.00013697,2]
[353454939,1739844632821,-500.0,0.00013697,2]
[353454941,1739844632831,-500.0,0.00013697,2]
[353454942,1739844632840,-416.65488417,0.00013697,2]
[353454943,1739844632849,-200.0,0.00013697,2]
[353454944,1739844632859,-200.0,0.00013698,2]
[353454945,1739844632870,-694.0,0.00013698,2]
[353454946,1739844632880,-479.73968585,0.00013698,3]
[353454947,1739844632889,-57288.06901605,0.00013698,5]
[353454948,1739844632912,-333181.56446396,0.00013698,5]
[353454949,1739844638131,-239.86984292,0.00013698,3]
[353454950,1739844638141,-635.0,0.00013698,2]
[353454951,1739844638151,-28375.13015708,0.00013698,5]
[353454952,1739844638162,-690.02331273,0.00013698,5]
[353454953,1739844638182,-889.28858656,0.00013698,5]
[353454954,1739844638196,-862.24427429,0.00013698,5]
[353454955,1739844638229,-996.19636862,0.00013698,5]
[353454956,1739844638241,-274.176,0.00013698,5]
[353454957,1739844638253,-809.98594867,0.00013698,5]
[353454958,1739844638264,-1952.93312316,0.00013698,5]
[353454959,1739844638289,-2258.99168339,0.00013698,5]
[353454960,1739844638301,-7251.71597944,0.00013698,5]
[353454961,1739844638338,-1962.58,0.00013698,5]
[353454962,1739844638349,-1357.00612256,0.00013698,5]
[353454963,1739844638360,-9823.98203823,0.00013698,5]
[353454964,1739844638372,-5051.91947064,0.00013698,5]
[353454965,1739844638384,-574.64790837,0.00013698,5]
[353454966,1739844638396,-2729.40718883,0.00013698,5]
[353454967,1739844638407,-325.9183265,0.00013698,5]
[353454968,1739844638419,-3090.78288953,0.00013698,5]
[353454969,1739844638703,-352.10604785,0.00013698,5]
[353455124,1739844640277,-19287.79999999,0.00013698,5]
[353455131,1739844640331,-819.65,0.00013698,5]
[353455149,1739844640488,-31041.38929713,0.00013698,5]
[353455177,1739844640751,-29643.33930656,0.00013698,5]
[353455178,1739844640762,-21057.89735241,0.00013698,5]
[353455538,1739844646202,-567.0,0.00013698,2]
[353455539,1739844646212,-7538.54527433,0.00013698,5]
[353455540,1739844646533,-11899.13266237,0.00013698,5]
[353455541,1739844646545,-8910.64716388,0.00013698,5]
[353455547,1739845259089,366.0,0.000205,120]
[353455569,1739845666272,155.51347371,0.00020199,120]
[353455585,1739845832603,-443.41287406,9.999e-05,2]
[353455586,1739845832612,-3567.19473657,0.0001,2]
[353455587,1739845832625,-2051.75802121,0.0001,2]
[353455588,1739845832634,-383.23887379,0.0001,2]
[353455589,1739845832652,-5110.24358885,0.0001,2]
[353455590,1739845832704,-72637.167675,0.0001,2]
[353455591,1739845832758,-1972.5999997,0.0001,2]
[353455592,1739845832866,-13080.78915979,0.0001,2]
[353455594,1739845832877,-22780.27281881,0.0001,2]
[353455966,1739845838366,-481.06554418,0.0001,2]
[353455967,1739845838525,-295.81260513,0.0001,2]
[353456147,1739845840410,-5554.0,0.0001,2]
[353456237,1739845841245,-340.24999908,0.0001,2]
[353456420,1739845843415,-27618.59636184,0.0001,2]
[353456421,1739845843476,-2126.37161437,0.0001,2]
[353456422,1739845843577,-2041.39172018,0.0001,2]
[353456440,1739845846627,-2502.1756668,0.0001,2]
[353456444,1739845918463,1987.0,8.973e-05,2]
[353456461,1739847031574,-300.34467959,8.973e-05,2]
[353456462,1739847031585,-207.29372041,8.973e-05,2]
[353456463,1739847031594,-200.0,9.037e-05,2]
[353456464,1739847031604,-206.03589583,9.799e-05,2]
[353456465,1739847031629,-93.96410417,9.799e-05,2]
[353456466,1739847031638,-422.03589583,9.8e-05,2]
[353456467,1739847031650,-652.22375222,9.8e-05,2]
[353456468,1739847031662,-871.53695397,9.8e-05,2]
[353456469,1739847031673,-1006.1552966,9.8e-05,2]
[353456470,1739847031734,-2286.39691092,9.8e-05,2]
[353456471,1739847031795,-701.115,9.8e-05,2]
[353456472,1739847031807,-214.28719046,9.8e-05,2]
[353456473,1739847031818,-284.031,9.8e-05,2]
[353456474,1739847031828,-150.15930485,9.8e-05,2]
[353456475,1739847031838,-200.0,9.87e-05,2]
[353456476,1739847031848,-200.0,9.87e-05,2]
[353456477,1739847031859,-503.11621683,9.973e-05,2]
[353456478,1739847031869,-150.0,9.999e-05,2]
[353456479,1739847031879,-1000.0,9.999e-05,2]
[353456480,1739847031889,-1000.0,9.999e-05,2]
[353456481,1739847031898,-199.65395295,9.999e-05,2]
[353456482,1739847031907,-728.94276833,0.0001,2]
[353456483,1739847031918,-738.28,0.0001,2]
[353456484,1739847031945,-667.83262828,0.0001,2]
[353456485,1739847031963,-61381.99363859,0.0001,2]
[353456486,1739847031974,-255.97559429,0.0001,2]
[353456487,1739847031986,-1527.45052351,0.0001,2]
[353456560,1739847037539,-720.9341478,0.0001,2]
[353456561,1739847037593,-867.17753653,0.0001,2]
[353456562,1739847037822,-318.46501115,0.0001,2]
[353456563,1739847037838,-32794.24571153,0.0001,2]
[353456564,1739847037871,-1002.16759468,0.0001,2]
[353456734,1739847039535,-268.19779313,0.0001,2]
[353456735,1739847039900,-1078.2000003,0.0001,2]
[353456747,1739847042774,-13589.8,0.0001,2]
[353456751,1739847045490,-1253.7698898,0.0001,2]
[353456752,1739847045502,-1872.63520888,0.0001,2]
[353456753,1739847045545,-4146.16905984,0.0001,2]
[353456754,1739847045608,-74926.53747959,0.0001,2]
[353456755,1739847045620,-8685.45906583,0.0001,2]
[353456756,1739847045709,-2656.08432828,0.0001,2]
[353456757,1739847045721,-33772.3277304,0.0001,2]
[353456758,1739847045871,-500.0,0.0001,2]
[353456761,1739847875857,2700.0,0.000205,120]
[353456773,1739848039641,-150.0,8.835e-05,2]
[353456774,1739848040367,-150.0,8.836e-05,2]
[353456775,1739848041138,-150.0,8.836e-05,2]
[353456776,1739848041961,-150.0,8.836e-05,2]
[353456780,1739848042762,-150.0,8.836e-05,2]
[353456781,1739848043876,-150.0,8.836e-05,2]
[353456787,1739848044543,-150.0,8.836e-05,2]
[353456788,1739848045471,-150.0,8.836e-05,2]
[353456789,1739848046220,-150.0,8.836e-05,2]
[353456790,1739848047055,-150.0,8.836e-05,2]
[353456791,1739848047931,-150.0,8.836e-05,2]
[353456792,1739848048686,-150.0,8.836e-05,2]
[353456793,1739848049506,-150.0,8.836e-05,2]
[353456794,1739848050452,-150.0,8.836e-05,2]
[353456795,1739848051272,-150.0,8.836e-05,2]
[353456796,1739848052076,-150.0,8.836e-05,2]
[353456797,1739848052914,-150.0,8.836e-05,2]
[353456798,1739848053748,-150.0,8.836e-05,2]
[353456799,1739848054540,-150.0,8.836e-05,2]
[353456800,1739848055357,-150.0,8.836e-05,2]
[353456801,1739848056149,-150.0,8.836e-05,2]
[353456802,1739848057119,-150.0,8.836e-05,2]
[353456803,1739848058122,-150.0,8.836e-05,2]
[353456804,1739848059046,-150.0,8.836e-05,2]
[353456805,1739848060309,-150.0,8.836e-05,2]
[353456806,1739848061217,-150.0,8.836e-05,2]
[353456807,1739848062089,-150.0,8.836e-05,2]
[353456808,1739848062918,-150.0,8.836e-05,2]
[353456809,1739848064422,-150.0,8.836e-05,2]
[353456810,1739848065037,-150.0,8.836e-05,2]
[353456811,1739848065913,-150.0,8.836e-05,2]
[353456812,1739848066754,-150.0,8.836e-05,2]
[353456813,1739848067588,-150.0,8.836e-05,2]
[353456814,1739848068414,-150.0,8.836e-05,2]
[353456815,1739848069177,-150.0,8.836e-05,2]
[353456816,1739848070068,-150.0,8.836e-05,2]
[353456817,1739848070872,-150.0,8.836e-05,2]
[353456818,1739848071877,-150.0,8.836e-05,2]
[353456819,1739848072546,-150.0,8.836e-05,2]
[353456820,1739848073410,-150.0,8.836e-05,2]
[353456821,1739848074307,-150.0,8.836e-05,2]
[353456822,1739848075132,-150.0,8.836e-05,2]
[353456823,1739848076086,-150.0,8.836e-05,2]
[353456824,1739848077013,-150.0,8.836e-05,2]
[353456825,1739848077980,-150.0,8.836e-05,2]
[353456826,1739848078783,-150.0,8.836e-05,2]
[353456827,1739848079688,-150.0,8.836e-05,2]
[353456828,1739848080818,-150.0,8.836e-05,2]
[353456829,1739848082361,-150.0,8.835e-05,2]
[353456830,1739848083733,-150.0,8.835e-05,2]
[353456831,1739848084655,-150.0,8.836e-05,2]
[353456832,1739848085525,-150.0,8.836e-05,2]
[353456833,1739848086412,-150.0,8.836e-05,2]
[353456834,1739848087280,-150.0,8.836e-05,2]
[353456835,1739848088138,-150.0,8.836e-05,2]
[353456836,1739848089052,-150.0,8.836e-05,2]
[353456837,1739848091438,-150.0,8.836e-05,2]
[353456845,1739848231726,-150.0,8.835e-05,2]
[353456846,1739848231736,-4946.0,8.836e-05,2]
[353456847,1739848231832,-5428.0,8.836e-05,2]
[353456848,1739848231843,-2250.61914172,8.836e-05,2]
[353456849,1739848231855,-288260.97208481,8.836e-05,2]
[353456850,1739848231865,-84562.71447347,8.836e-05,2]
[353456851,1739848231874,-8468.7,8.836e-05,2]
[353456852,1739848231883,-496.74443748,8.904e-05,2]
[353456853,1739848231892,-963.6,8.973e-05,2]
[353456854,1739848231901,-200.0,9.719e-05,2]
[353456855,1739848231910,-150.0,9.719e-05,2]
[353456856,1739848231919,-200.0,9.719e-05,2]
[353456857,1739848231928,-150.0,9.719e-05,2]
[353456858,1739848231937,-200.0,9.719e-05,2]
[353456859,1739848231946,-150.0,9.719e-05,2]
[353456860,1739848231955,-1536.05330292,9.8e-05,2]
[353456861,1739848231973,-1959.9999998,9.8e-05,2]
[353456862,1739848231991,-1732.20869728,9.8e-05,2]
[353456863,1739848232000,-179.01564016,9.8e-05,2]
[353456864,1739848232013,-48.20935984,9.8e-05,2]
[353456865,1739848232022,-170.21,9.852e-05,2]
[353456866,1739848232031,-1052.07004656,9.875e-05,2]
[353456867,1739848232043,-947.92995344,9.875e-05,2]
[353456868,1739848232052,-151.69,9.913e-05,2]
[353456869,1739848232062,-197.51,9.998e-05,2]
[353456870,1739848232071,-500.0,9.999e-05,2]
[353456871,1739848232081,-158.63448828,9.999e-05,2]
[353456872,1739848232091,-500.0,9.999e-05,2]
[353456873,1739848232101,-500.0,9.999e-05,2]
[353456874,1739848232110,-459.4961402,9.999e-05,2]
[353456875,1739848232119,-343.06122807,0.0001,2]
[353456876,1739848232134,-159365.65178658,0.0001,2]
[353456877,1739848232146,-213444.6463251,0.0001,2]
[353456878,1739848232157,-337.06151267,0.0001,2]
[353456890,1739848237682,-169.84,9.926e-05,2]
[353456891,1739848237692,-12203.84550093,0.0001,2]
[353456892,1739848237735,-425.50669335,0.0001,2]
[353456893,1739848237790,-11168.05070571,0.0001,2]
[353456896,1739848237965,-6000.0,0.0001,2]
[353456898,1739848237975,-478.11552343,0.0001,2]
[353456974,1739848239726,-134.21778088,0.0001,2]
[353456975,1739848239735,-61481.78221912,0.0001,2]
[353456976,1739848239747,-69777.30369847,0.0001,2]
[353456977,1739848239780,-358.48759998,0.0001,2]
[353456978,1739848239797,-5190.73067572,0.0001,2]
[353456979,1739848239806,-190.26744901,0.0001,2]
[353456980,1739848239816,-200.0,0.0001,2]
[353456981,1739848239826,-550.0,0.0001,2]
[353456982,1739848239835,-4000.0,0.0001,2]
[353456983,1739848239845,-1000.0,0.0001,3]
[353456984,1739848239855,-508.86,0.0001,2]
[353456985,1739848239865,-209.5371801,0.0001,2]
[353456986,1739848239875,-209.53718002,0.0001,2]
[353456987,1739848239884,-168.53,0.00010033,2]
[353456988,1739848239894,-200.0,0.000101,2]
[353456989,1739848239905,-166.52,0.00010137,2]
[353456990,1739848239916,-161.62,0.00010137,2]
[353456991,1739848239927,-315.97,0.00010137,2]
[353456992,1739848239937,-346.2392288,0.00010215,2]
[353456993,1739848239947,-776.08,0.00010425,2]
[353456994,1739848239958,-346.2392288,0.00010654,2]
[353456995,1739848239968,-346.2392288,0.00010799,2]
[353456996,1739848239978,-168.53,0.00010861,2]
[353456997,1739848239988,-209.53718002,0.000109,2]
[353456998,1739848239998,-500.0,0.00010959,2]
[353456999,1739848240008,-2000.0,0.00010959,2]
[353457000,1739848240018,-500.0,0.00010959,2]
[353457001,1739848240027,-200.0,0.00010959,2]
[353457002,1739848240037,-150.0,0.00011,2]
[353457003,1739848240047,-346.2392288,0.00011181,2]
[353457004,1739848240057,-346.239229,0.00011487,2]
[353457005,1739848240067,-401.04,0.00011488,2]
[353457006,1739848240077,-485.81,0.00011535,2]
[353457007,1739848240087,-168.53,0.00011689,2]
[353457008,1739848240097,-174.06,0.00011691,2]
[353457009,1739848240106,-463.85,0.0001171,2]
[353457010,1739848240116,-911.73,0.00011713,2]
[353457011,1739848240125,-382.688,0.00011836,2]
[353457012,1739848240135,-166.69,0.00011853,2]
[353457013,1739848240145,-166.69,0.00011883,2]
[353457014,1739848240155,-150.13,0.000119,2]
[353457015,1739848240165,-209.53718002,0.000119,2]
[353457016,1739848240177,-166.69,0.00011913,2]
[353457017,1739848240188,-600.0,0.00012,2]
[353457018,1739848240198,-190.57,0.00012004,2]
[353457019,1739848240209,-166.0,0.00012097,2]
[353457020,1739848240218,-1000.0,0.000121,2]
[353457021,1739848240230,-150.0,0.00012304,2]
[353457022,1739848240240,-150.0,0.00012304,2]
[353457023,1739848240250,-150.66050229,0.00012304,2]
[353457024,1739848240260,-150.0,0.00012304,2]
[353457025,1739848240271,-150.0,0.00012304,2]
[353457026,1739848240284,-150.0,0.00012321,2]
[353457027,1739848240294,-150.0,0.00012339,2]
[353457028,1739848240304,-150.0,0.00012356,2]
[353457030,1739848240314,-150.0,0.00012366,2]
[353457031,1739848240323,-150.0,0.00012373,2]
[353457032,1739848240333,-150.0,0.00012376,2]
[353457033,1739848240343,-150.0,0.00012391,2]
[353457034,1739848240353,-4000.0,0.000124,2]
[353457035,1739848240363,-150.0,0.00012408,2]
[353457036,1739848240373,-150.0,0.00012425,2]
[353457037,1739848240383,-150.0,0.00012428,2]
[353457038,1739848240392,-150.0,0.00012443,2]
[353457039,1739848240402,-150.0,0.00012448,2]
[353457040,1739848240411,-150.0,0.0001246,2]
[353457041,1739848240421,-150.0,0.00012475,2]
[353457042,1739848240431,-150.0,0.00012477,2]
[353457043,1739848240440,-150.0,0.00012491,2]
[353457044,1739848240450,-150.0,0.00012494,2]
[353457045,1739848240461,-150.0,0.00012512,2]
[353457046,1739848240470,-150.0,0.0001252,2]
[353457047,1739848240481,-150.0,0.00012529,2]
[353457048,1739848240490,-150.0,0.00012546,2]
[353457049,1739848240500,-150.0,0.00012553,2]
[353457050,1739848240510,-150.0,0.00012564,2]
[353457051,1739848240519,-150.0,0.00012581,2]
[353457052,1739848240529,-150.0,0.00012592,2]
[353457053,1739848240543,-150.0,0.00012598,2]
[353457054,1739848240558,-150.0,0.00012615,2]
[353457055,1739848240573,-150.0,0.00012616,2]
[353457056,1739848240585,-150.0,0.00012633,2]
[353457057,1739848240597,-150.0,0.00012646,2]
[353457058,1739848240612,-150.0,0.0001265,2]
[353457059,1739848240627,-150.0,0.00012664,2]
[353457060,1739848240642,-150.0,0.00012668,2]
[353457061,1739848240654,-150.0,0.00012677,2]
[353457062,1739848240667,-150.0,0.00012685,2]
[353457063,1739848240679,-776.08,0.00012689,2]
[353457064,1739848240690,-193.0,0.00012689,2]
[353457065,1739848240705,-150.0,0.00012702,2]
[353457066,1739848240719,-150.0,0.00012719,2]
[353457067,1739848240733,-150.0,0.00012736,2]
[353457068,1739848240746,-150.0,0.00012737,2]
[353457069,1739848240761,-150.0,0.00012739,2]
[353457070,1739848240776,-150.0,0.00012754,2]
[353457071,1739848240790,-150.0,0.00012771,2]
[353457072,1739848240805,-150.0,0.00012789,2]
[353457073,1739848240818,-150.0,0.00012801,2]
[353457074,1739848240831,-150.0,0.00012806,2]
[353457075,1739848240844,-150.0,0.00012808,2]
[353457076,1739848240857,-150.0,0.00012817,2]
[353457077,1739848240871,-150.0,0.00012823,2]
[353457078,1739848240886,-1015.396,0.00012832,2]
[353457079,1739848240899,-3934.381,0.00012832,2]
[353457080,1739848240913,-151.667,0.00012832,2]
[353457081,1739848240926,-1112.788,0.00012832,2]
[353457082,1739848240938,-150.0,0.00012841,2]
[353457083,1739848240951,-150.0,0.00012858,2]
[353457084,1739848240968,-150.0,0.00012863,2]
[353457085,1739848240982,-150.0,0.00012875,2]
[353457086,1739848240993,-150.0,0.0001288,2]
[353457087,1739848241005,-150.0,0.00012892,2]
[353457088,1739848241019,-209.53718002,0.000129,2]
[353457089,1739848241034,-150.0,0.0001291,2]
[353457090,1739848241047,-150.0,0.00012926,2]
[353457091,1739848241058,-150.0,0.00012927,2]
[353457092,1739848241070,-150.0,0.00012944,2]
[353457093,1739848241082,-150.0,0.00012952,2]
[353457094,1739848241094,-150.0,0.00012962,2]
[353457095,1739848241106,-150.0,0.00012979,2]
[353457096,1739848241122,-150.0,0.00012988,2]
[353457097,1739848241134,-150.0,0.00012988,2]
[353457098,1739848241147,-150.0,0.00012996,2]
[353457099,1739848241159,-150.0,0.00013014,2]
[353457100,1739848241173,-150.0,0.00013024,2]
[353457101,1739848241188,-150.0,0.00013031,2]
[353457102,1739848241200,-150.0,0.00013048,2]
[353457103,1739848241212,-150.0,0.0001305,2]
[353457104,1739848241226,-150.0,0.00013066,2]
[353457105,1739848241238,-150.0,0.00013083,2]
[353457106,1739848241251,-150.0,0.00013096,2]
[353457107,1739848241265,-150.0,0.000131,2]
[353457108,1739848241277,-150.0,0.00013112,2]